Cogmind - Beta 17 --- EXPLORER MODE // 2026.08.15 @ 20:52:36 // Winter2019/RPGLIKE Player: GogoFox Result: Self-destructed Performance ------------- Evolutions (2) 1000 Regions Visited (5) 1000 Robots Destroyed (165) 825 Value Destroyed (4883) 4883 Prototype IDs (12) 240 Alien Tech Used (0) 0 Bonus (1346) 1346 TOTAL SCORE: 9294 Bonus ------- High Alert Combat Kills 374 Follower Combat Kills 272 Entered Garrisons 200 Used RIF Installer 500 Cogmind --------- Core Integrity 737/850 Matter 272/300 Energy 437/470 System Corruption 1% Temperature Cool (0) Movement Treading (170) Location -8/Garrison Parts ------- > --- POWER (2) -------- Heavy Ion Engine Reinforced Deuterium Engine > --- PROPULSION (4) --- Armored Treads Armored Treads Armored Treads Armored Treads > --- UTILITY (7) ------ Improved Terrain Scanner Weapon Cycler Hardened Light Armor Plating Layered Medium Armor Plating Force Field Relay Coupler [Grunt] (70) Trap Extractor (0/4) > --- WEAPON (3) ------- Advanced Beam Cannon Heavy Plasma Cannon Remote Datajack > --- INVENTORY (4) ---- Improved Medium Laser Grenade Launcher Rocket Launcher Peak State ------------ > --- POWER ------------ Heavy Ion Engine Reinforced Deuterium Engine > --- PROPULSION ------- Armored Treads Armored Treads Armored Treads Armored Treads > --- UTILITY ---------- Improved Terrain Scanner Weapon Cycler Hardened Light Armor Plating Layered Medium Armor Plating Force Field Relay Coupler [Grunt] Trap Extractor > --- WEAPON ----------- Advanced Beam Cannon Heavy Plasma Cannon Remote Datajack > --- INVENTORY -------- Improved Medium Laser Grenade Launcher Rocket Launcher [Rating: 55] Favorites ----------- Power Heavy Ion Engine Engine Heavy Ion Engine Propulsion Armored Treads Treads Armored Treads Leg Aluminum Leg Utility Hardened Light Armor Plating Device Improved Terrain Scanner Processor Targeting Computer Hackware Relay Coupler [Grunt] Protection Hardened Light Armor Plating Weapon Advanced Beam Cannon Energy Gun Improved Medium Laser Energy Cannon Advanced Beam Cannon Ballistic Gun Assault Rifle Launcher Grenade Launcher Special Weapon Plasma Cutter Special Melee Weapon Improved Datajack Build | -11 -10 -9 -9 -8 -8 ------- Run | Yrd Mat Mat Sto Mat Gar Slots Evolved 12 | 4 1 4 2 1 . Power 1 | . . 1 . . . Propulsion 3 | 1 1 1 . . . Utility 6 | 2 . 1 2 1 . Weapon 2 | 1 . 1 . . . Parts Attached 65 | 10 6 26 10 3 10 Power 8 | 1 1 3 2 . 1 Engine 8 | 1 1 3 2 . 1 Core . | . . . . . . Reactor . | . . . . . . Propulsion 16 | 3 1 12 . . . Treads 14 | 2 1 11 . . . Leg 2 | 1 . 1 . . . Wheel . | . . . . . . Hover . | . . . . . . Flight . | . . . . . . Utility 21 | 4 1 3 4 2 7 Device 11 | 2 1 . 3 2 3 Storage . | . . . . . . Processor 1 | . . 1 . . . Hackware 1 | . . . . . 1 Protection 8 | 2 . 2 1 . 3 Artifact . | . . . . . . Weapon 20 | 2 3 8 4 1 2 Energy Gun 9 | 1 2 5 1 . . Energy Cannon 4 | . . 2 1 . 1 Ballistic Gun 1 | 1 . . . . . Ballistic Cannon . | . . . . . . Launcher 3 | . 1 1 1 . . Special Weapon 2 | . . . 1 . 1 Impact Weapon . | . . . . . . Slashing Weapon . | . . . . . . Piercing Weapon . | . . . . . . Special Melee Weapon 1 | . . . . 1 . Unidentified Prototypes 3 | . . 3 . . . Parts Lost 1 | . . 1 . . . Power . | . . . . . . Propulsion . | . . . . . . Utility 1 | . . 1 . . . Weapon . | . . . . . . Highest Loss Streak 1 | . . 1 . . . To Critical Strikes . | . . . . . . Average Backups 3 | 1 2 2 3 3 4 Power . | . . . . . . Propulsion . | . . . . . . Utility . | . 2 . . . . Weapon 1 | . . 1 2 2 2 Tool/Special . | . . . . . . Unused Backups 3 | . 1 1 1 . . Power . | . . . . . . Propulsion . | . . . . . . Utility 3 | . 1 1 1 . . Weapon . | . . . . . . Tool/Special . | . . . . . . Average Slot Usage (%) 98 | . 100 98 99 97 97 Engine 12 | . 11 13 13 12 12 Treads 28 | . 32 29 27 25 25 Device 20 | . 21 15 22 25 24 Processor 1 | . . 4 . . . Protection 12 | . 11 9 13 12 16 Energy Gun 10 | . 16 16 5 5 4 Energy Cannon 7 | . . 4 12 12 12 Peak Build Rating 55 | 10 12 35 47 45 55 Average Rating 31 | 6 11 24 41 38 44 On Entrance 23 | . 10 12 35 45 38 Avg Prop Armor Cover (%) 7 | 16 7 12 . . . Naked Turns . | . . . . . . Heaviest Build 73 | 14 16 41 53 51 73 Greatest Support 83 | 40 60 83 80 80 80 Greatest Overweight (x) 1 | . . 1 . . . Average Overweight (x) . | . . . . . . Largest Inventory Capacity 4 | 3 3 3 4 4 4 Average Capacity 3 | 2 3 3 3 4 4 Most Carried 4 | 3 3 3 4 4 4 Average Carried 3 | 1 2 2 3 3 3 Final Capacity 4 | 3 3 3 4 4 4 Final Carried 4 | 3 3 3 4 4 3 Class Distribution -------------------- 45% | Hacker-Skirmisher 25% | Hacker-Gunner 9% | Hacker-Tank 7% | Hacker-Assassin 7% | Scavenger-Skirmisher 4% | Hacker-Mutant Dominant Class ---------------- Hacker-Skirmisher | -10/Materials Hacker-Skirmisher | -9/Materials Hacker-Gunner | -9/Storage Hacker-Gunner | -8/Materials Hacker-Tank | -8/Garrison Resources | -11 -10 -9 -9 -8 -8 ----------- Run | Yrd Mat Mat Sto Mat Gar Matter Collected 1645 | 249 325 431 452 40 148 Remotely . | . . . . . . Salvage Created 4986 | 97 689 1406 1469 123 1202 Parts 327 | 7 51 95 90 14 70 Haulers Intercepted 8 | . 2 4 2 . . Recyclers Shooed 4 | . . 2 2 . . Parts Field Recycled . | . . . . . . Retrieved Matter . | . . . . . . Parts Self-Destructed . | . . . . . . Prevented . | . . . . . . Parts Restored 1 | . . . 1 . . Broken 1 | . . . 1 . . Kills | -11 -10 -9 -9 -8 -8 ------- Run | Yrd Mat Mat Sto Mat Gar Combat Hostiles Destroyed 115 | . 10 29 36 5 35 Melee 1 | . . . . . 1 Guns 46 | . 10 17 8 1 10 Cannons 49 | . . 6 17 4 22 AOE 15 | . . 4 10 . 1 Classes Destroyed 17 | 2 6 3 3 1 2 Worker 15 | . 9 2 4 . . Builder 4 | . 2 1 1 . . Tunneler 4 | 1 2 1 . . . Hauler 8 | . 2 4 2 . . Recycler 6 | 1 1 3 1 . . Mechanic 2 | . . . 2 . . Operator 1 | . . 1 . . . Watcher 10 | . 3 5 1 1 . Swarmer 25 | . 4 3 . 1 17 Grunt 52 | . 6 16 21 2 7 Brawler 6 | . . 1 4 . 1 Duelist 3 | . . . 3 . . Protector 2 | . . . 2 . . Sentry 20 | . . 9 6 1 4 Hunter 1 | . . . . 1 . Programmer 3 | . . . . . 3 Behemoth 2 | . . . . . 2 Savage 1 | . . . . . 1 Best Kill Streak 8 | 2 6 4 8 2 5 Combat Bots Only 8 | . 5 4 8 2 5 Max Kills in Single Turn 5 | 1 2 2 5 2 2 Gunslinging 1 | . 1 . . . . Exploded 5 | . . 2 5 . 1 Melee 1 | . . . . . 1 Uniques/NPCs Destroyed . | . . . . . . Combat | -11 -10 -9 -9 -8 -8 -------- Run | Yrd Mat Mat Sto Mat Gar Hostile Shots Fired 347 | . 38 88 82 17 122 Missed 96 | . 10 29 25 5 27 Hits 251 | . 28 59 57 12 95 Melee 8 | . . . 6 . 2 Projectile 243 | . 28 59 51 12 93 Critical Strikes 11 | . . 5 3 1 2 Damage Taken 2136 | . 203 466 518 111 838 Core 1464 | . 131 334 341 76 582 Absorbed by Shields 79 | . . . . . 79 Redirected to Core 1310 | . 111 275 314 68 542 Ignored by Resistances 1575 | . 138 294 333 80 730 Regen/Repaired (Parts) 53 | . . 42 11 . . Core Remaining (%) 92 | 100 78 . 100 . . Volleys Fired 277 | 2 60 85 62 12 56 Largest 3 | 2 2 3 3 3 3 Hottest 214 | 60 105 192 192 192 214 Shots Fired 709 | 4 109 228 175 36 157 Gun 404 | 4 98 193 52 12 45 Cannon 278 | . . 28 114 24 112 Launcher 26 | . 11 7 8 . . Special 1 | . . . 1 . . Kinetic 25 | 2 23 . . . . Thermal 633 | . 52 221 167 36 157 Explosive 24 | . 11 5 8 . . Electromagnetic 27 | 2 23 2 . . . Robot Hit Streak 88 | 2 26 88 57 38 24 Robot Miss Streak 3 | . 2 1 3 1 1 Penetration Max . | . . . . . . Secondary Targets 2 | . 2 . . . . Max Gunslinging Chain 1 | . 1 . . . . Shots Hit Robots 540 | 2 83 166 122 36 131 Core Hits 223 | 2 41 60 60 9 51 Critical Kills 2 | . . . 1 . 1 Critical Parts Destroyed . | . . . . . . Critical Strikes 21 | . 2 7 7 1 4 Burn 19 | . 2 7 6 1 3 Meltdown 2 | . . . 1 . 1 Melee Attacks 18 | . . . . 3 15 Impact . | . . . . . . Slashing . | . . . . . . Piercing . | . . . . . . Sneak Attacks 13 | . . . . 3 10 Combat Hostiles . | . . . . . . Follow-up Attacks . | . . . . . . Damage Inflicted 11699 | 28 1588 2804 3469 707 3103 Guns 5372 | 28 1084 2374 835 223 828 Cannons 4687 | . . 246 1817 484 2140 Explosions 1631 | . 504 178 817 . 132 Melee . | . . . . . . Ramming 9 | . . 6 . . 3 Kinetic 226 | . 226 . . . . Thermal 9611 | . 664 2620 2652 707 2968 Explosive 1460 | . 401 110 817 . 132 Electromagnetic 393 | 28 297 68 . . . Impact . | . . . . . . Slashing . | . . . . . . Piercing . | . . . . . . Highest Corruption 2 | . 2 . . . 1 Average Corruption 1 | . 1 . . . 1 Corruption Purged . | . . . . . . Corruption Blocked . | . . . . . . Effects 21 | . 9 . . . 12 Message Errors 5 | . 3 . . . 2 Matter Fused 6 | . 4 . . . 2 Heat Flow Errors 3 | . . . . . 3 Energy Discharges 3 | . 1 . . . 2 Parts Fused 1 | . . . . . 1 Data Loss (minor) 1 | . 1 . . . . Data Loss (major) 1 | . . . . . 1 Alerts 1 | . . . . . 1 Overload Shots . | . . . . . . Overflow Damage 138 | . . 17 27 25 69 Projectiles 138 | . . 17 27 25 69 Explosions . | . . . . . . Melee . | . . . . . . Knockbacks . | . . . . . . Impact . | . . . . . . Kinetic . | . . . . . . Secondary . | . . . . . . Self-Inflicted Damage 42 | . 42 . . . . Shots 3 | . 3 . . . . Rammed 1 | . . 1 . . . Targets Rammed 2 | . . 1 . . 1 Kicked . | . . . . . . Crushed 1 | . . . . . 1 Highest Temperature 600 | 18 568 600 571 26 232 Average Temperature 108 | 10 151 111 90 17 53 Received Heat Transfer 1110 | . 102 357 321 81 249 Effects 33 | . 16 10 7 . . Shutdowns 6 | . 2 2 2 . . Energy Bleed 4 | . 2 2 . . . Interference 6 | . 4 . 2 . . Matter Decay 2 | . . . 2 . . Short Circuit 3 | . 1 1 1 . . Damage (minor) 2 | . . 2 . . . Damage (major) 10 | . 7 3 . . . Siege Activations . | . . . . . . Martial Activations . | . . . . . . Shielding Activations . | . . . . . . Robots Disrupted . | . . . . . . Combat Hostiles . | . . . . . . Robots Corrupted . | . . . . . . Combat Hostiles . | . . . . . . Parts Fried . | . . . . . . Impact Corruptions . | . . . . . . Robots Melted 4 | . . 2 1 . 1 Combat Hostiles 4 | . . 2 1 . 1 Parts Melted 49 | . 1 19 16 4 9 Heat Transferred 19507 | . 1551 6600 5328 1295 4733 Parts Sabotaged . | . . . . . . Parts Stolen . | . . . . . . Parts Stripped . | . . . . . . Power Chain Reactions 1 | . 1 . . . . Alert | -11 -10 -9 -9 -8 -8 ------- Run | Yrd Mat Mat Sto Mat Gar Maximum Alert Level 4 | . . . 1 . 4 Low Security (%) 64 | 100 100 100 33 100 11 Level 1 15 | . . . 66 . 14 Level 2 2 | . . . . . 9 Level 3 12 | . . . . . 45 Level 4 4 | . . . . . 18 Level 5 . | . . . . . . High Security . | . . . . . . Max Security . | . . . . . . Peak Influence 1304 | 5 123 87 381 154 1304 Initial 88 | . . . . 88 61 Average 243 | . 22 11 209 79 739 Influence Increases 4231 | 10 457 964 1216 261 1323 Destroy 0b10 Robot/C 2460 | . 200 580 720 180 780 Destroy 0b10 Robot/NC 270 | 10 95 85 65 15 . Destroy Leader 460 | . 50 188 156 46 20 Allied During Kill 15 | . . . 8 7 . Trap Triggered on 0b10 10 | . . 10 . . . Successful Hack 134 | . 44 37 32 7 14 Disable Machine 52 | . 8 . 40 4 . Anti-Garrison Action 600 | . . . 150 . 450 Destroy Structure 185 | . 45 49 45 2 44 Lose Combat Pursuer 45 | . 15 15 . . 15 Influence Decreases 2927 | 10 457 964 923 430 143 Entered New Map 268 | . . . . 205 63 Time Decay 2539 | 10 457 954 893 225 . Lost Part 10 | . . 10 . . . Lost Ally 110 | . . . 30 . 80 Squads Dispatched 14 | . 1 6 7 . . Investigation 9 | . 1 5 3 . . Extermination . | . . . . . . Reinforcement 1 | . . 1 . . . Assault 3 | . . . 3 . . Garrison 1 | . . . 1 . . Intercept . | . . . . . . Searches Triggered . | . . . . . . Construction Impeded . | . . . . . . Haulers Reinforced . | . . . . . . Active Scanning Responses . | . . . . . . Cargo Convoy Interrupts . | . . . . . . Stealth | -11 -10 -9 -9 -8 -8 --------- Run | Yrd Mat Mat Sto Mat Gar Distress Signals 12 | . 2 5 3 2 . Communications Jammed . | . . . . . . Distress Signals . | . . . . . . Times Spotted 150 | . 17 38 42 15 38 Peak Tracking Total 9 | . 5 3 9 6 5 Tactical Retreats 3 | . 1 1 . . 1 Traps | -11 -10 -9 -9 -8 -8 ------- Run | Yrd Mat Mat Sto Mat Gar Traps Triggered 7 | . 4 1 1 . 1 Indirectly . | . . . . . . Trap Hack Attempts 11 | . . . . . 11 Triggered . | . . . . . . Disarmed 4 | . . 1 2 . 1 Reprogrammed 4 | . . 3 . . 1 Reused 1 | . . 1 . . . Traps Extracted . | . . . . . . Installed . | . . . . . . Triggered 1 | . . 1 . . . Machines | -11 -10 -9 -9 -8 -8 ---------- Run | Yrd Mat Mat Sto Mat Gar Machines Disabled 17 | . 2 . 11 1 3 Max in Single Turn 2 | . 1 . 1 . 2 Garrison Access 1 | . . . 1 . . Garrison Relay 1 | . . . . . 1 Phase Generator 1 | . . . . . 1 Machines Repaired . | . . . . . . Machines Dismantled 4 | . . . 4 . . Machines Sabotaged . | . . . . . . Overloaded Fab Kills . | . . . . . . Hacking | -11 -10 -9 -9 -8 -8 --------- Run | Yrd Mat Mat Sto Mat Gar Machines Accessed 42 | . 8 15 11 4 4 Terminals 33 | . 7 10 9 3 4 Fabricators . | . . . . . . Repair Stations 3 | . . 2 1 . . Recycling Units 2 | . 1 1 . . . Scanalyzers 2 | . . 2 . . . Garrison Access 2 | . . . 1 1 . Total Hacks 166 | . 31 66 43 15 11 Successful 116 | . 18 49 34 12 3 Failed 50 | . 13 17 9 3 8 Catastrophic 4 | . . 1 . . 3 Database Lockouts . | . . . . . . Manual 77 | . 21 24 21 9 2 Terminals 136 | . 26 47 38 14 11 Fabricators . | . . . . . . Repair Stations 9 | . . 6 3 . . Recycling Units 10 | . 5 5 . . . Scanalyzers 8 | . . 8 . . . Garrison Access 3 | . . . 2 1 . Terminal Hacks 78 | . 12 31 23 9 3 Record 5 | . . 4 1 . . Part Schematic 7 | . 3 . 4 . . Robot Schematic 11 | . 3 3 4 1 . Robot Analysis 4 | . 1 2 1 . . Prototype ID Bank 6 | . 3 1 1 1 . Open Door 3 | . . . 2 . 1 Branch Access Points 3 | . . 2 . 1 . Emergency Access Points 4 | . . 1 2 . 1 Machine Index 2 | . . 1 1 . . Recycling Unit Index 1 | . . . 1 . . Scanalyzer Index 1 | . . 1 . . . Alert Level 2 | . . 1 1 . . Locate Traps 5 | . . 2 . 3 . Disarm Traps 3 | . . 1 2 . . Reprogram Traps 1 | . . 1 . . . Dispatch Records 2 | . 1 1 . . . Maintenance Status 2 | . . 2 . . . Security Status 2 | . . 1 1 . . Patrol Status 1 | . . . 1 . . Transport Status 1 | . . 1 . . . Hauler Manifests 3 | . 1 1 . 1 . Registered Components 1 | . . 1 . . . Registered Prototypes 1 | . . 1 . . . Zone Layout 6 | . . 3 1 2 . Patrol Navigation 1 | . . . . . 1 Fabricator Hacks . | . . . . . . Repair Station Hacks 6 | . . 4 2 . . Scan Component 4 | . . 3 1 . . Repair 2 | . . 1 1 . . Recycling Unit Hacks 4 | . 2 2 . . . Report Inventory 1 | . . 1 . . . Retrieve Matter 1 | . 1 . . . . Retrieve Components 2 | . 1 1 . . . Scanalyzer 8 | . . 8 . . . Insert Component 4 | . . 4 . . . Analyze 1 | . . 1 . . . Retrieve Study 3 | . . 3 . . . Garrison Access Hacks 3 | . . . 2 1 . Unlock Access 2 | . . . 1 1 . Coupler Status 1 | . . . 1 . . Unauthorized Hacks 17 | . 4 4 7 2 . Terminals 14 | . 3 3 6 2 . Botnet 13 | . 3 3 5 2 . Operators 1 | . . . 1 . . Fabricators . | . . . . . . Repair Stations 1 | . . . 1 . . Patch 1 | . . . 1 . . Recycling Units 2 | . 1 1 . . . Recyclers 2 | . 1 1 . . . Scanalyzers . | . . . . . . Garrison Access . | . . . . . . Data Cores Recovered . | . . . . . . Used . | . . . . . . Hacking Detections 34 | . 8 14 7 2 3 Full Trace Events 18 | . 3 10 2 . 3 Feedback Events 2 | . 1 . . . 1 Corruption 2 | . 1 . . . 1 Feedback Blocked . | . . . . . . Robot Schematics Acquired 10 | . 3 3 3 1 . Robots Built . | . . . . . . Authchips . | . . . . . . Time . | . . . . . . Total Robot Build Rating . | . . . . . . Part Schematics Acquired 8 | . 3 1 4 . . Parts Built . | . . . . . . Authchips . | . . . . . . Time . | . . . . . . Total Part Build Rating . | . . . . . . Part Studies Acquired 2 | . . 2 . . . Parts Repaired 2 | . . 1 1 . . Time 62 | . . 36 26 . . Parts Recycled . | . . . . . . Recycled Matter . | . . . . . . Retrieved Matter . | . . . . . . Retrieved Components 9 | . . 9 . . . Parts Scanalyzed 1 | . . 1 . . . Part Schematics Acquired 1 | . . 1 . . . Parts Damaged . | . . . . . . Bothacking | -11 -10 -9 -9 -8 -8 ------------ Run | Yrd Mat Mat Sto Mat Gar Used RIF Installer 1 | . . . . . 1 Robots Hacked 5 | . . . . 1 4 Non-combat 1 | . . . . 1 . Combat 4 | . . . . . 4 Robot Hacks Applied 6 | . . . . 2 4 parse_system 5 | . . . . 1 4 no_distress 1 | . . . . 1 . Relay Couplers Released 2 | . . . 1 . 1 Machine Destruction 2 | . . . 1 . 1 Attached 1 | . . . . . 1 Fabnet Peak Effective % . | . . . . . . Robots Rewired 4 | . . . . . 4 Allies Hacked . | . . . . . . Hacks Repelled . | . . . . . . Allies | -11 -10 -9 -9 -8 -8 -------- Run | Yrd Mat Mat Sto Mat Gar Total Allies 6 | . . . 2 . 4 Largest Group 3 | . . . 2 2 3 Highest-Rated Group 62 | . . . 62 62 31 Highest-Rated Ally 31 | . . . 31 31 31 Total Orders 1 | . . . 1 . . EXPLORE 1 | . . . 1 . . Ally Attacks 94 | . . . 13 46 35 Total Damage 1264 | . . . 246 608 410 Kills 13 | . . . 2 7 4 Allies Corrupted . | . . . . . . Allies Melted . | . . . . . . Intel | -11 -10 -9 -9 -8 -8 ------- Run | Yrd Mat Mat Sto Mat Gar Active Infowar (turns) 7606 | 46 1310 2530 1389 308 2023 Terrain 6960 | 25 685 2530 1389 308 2023 Structural 6295 | . 1226 2530 1121 308 1110 ECM 21 | 21 . . . . . Robot Analysis Total 4 | . 1 2 1 . . Derelict Logs Recovered . | . . . . . . Drone Launches 5 | . . . 4 1 . Drone Recoveries 1 | . . . 1 . . Exploration | -11 -10 -9 -9 -8 -8 ------------- Run | Yrd Mat Mat Sto Mat Gar Turns Passed 7683 | 123 1310 2530 1389 308 2023 Spaces Moved 3725 | 67 692 1175 602 150 1039 Core 5 | 5 . . . . . Treads 3687 | 61 692 1143 602 150 1039 Legs 33 | 1 . 32 . . . Wheels . | . . . . . . Hover . | . . . . . . Flight . | . . . . . . Fastest Speed 50 | 50 160 160 170 170 170 Average Speed 165 | 151 160 162 170 170 170 Slowest Speed 190 | 160 160 190 170 170 170 Overloaded Moves . | . . . . . . Propulsion Burnouts . | . . . . . . Robots Hopped . | . . . . . . Potential Cave-ins . | . . . . . . Cave-ins Triggered . | . . . . . . Exploration Rate (%) 64 | 5 80 91 90 22 96 Regions Visited 5 Branch Regions 1 Pre-discovered Areas . | . . . . . . Known Exits Taken 5 | 1 1 1 1 1 . Unknown Exits Taken . | . . . . . . Scrap Searched . | . . . . . . Spaces Dug . | . . . . . . Terrain Destroyed 206 | . 52 38 57 1 58 Melee . | . . . . . . Projectile 7 | . . . . 1 6 AOE 199 | . 52 38 57 . 52 Terrain Rammed . | . . . . . . Walls Destroyed . | . . . . . . Machines Disabled . | . . . . . . Actions | -11 -10 -9 -9 -8 -8 --------- Run | Yrd Mat Mat Sto Mat Gar Total 4606 | 81 787 1617 769 176 1176 Wait 309 | . 21 264 17 2 5 Move 3720 | 66 691 1174 601 149 1039 Hop . | . . . . . . Pick Up 15 | 1 2 5 5 1 1 Fast Attach 40 | 10 4 12 6 1 7 Attach 7 | . . 5 . 1 1 Detach 7 | 2 1 3 1 . . Swap 56 | . 2 21 23 2 8 Drop 51 | . 6 25 9 2 9 Fire 277 | 2 60 85 62 12 56 Melee 18 | . . . . 3 15 Ram . | . . . . . . Kick . | . . . . . . Crush 2 | . . 1 . . 1 Escape Stasis . | . . . . . . Rewire 1 | . . . . . 1 Trap 11 | . . . . . 11 Miscellaneous 92 | . . 22 45 3 22 Route ------- -11/Scrapyard -10/Materials (discovered 3 exits: *Mat x3) -9/Materials (discovered 5 exits: *Mat x3 / *Min / *Sto) -9/Storage (discovered 2 exits: *Mat / *Rec) -8/Materials -8/Garrison (discovered 3 exits: *Mat x3) History --------- Turn | Location | Event 3 | -11/Scrapyard | Identified exit to Materials 3 | -11/Scrapyard | Discovered exit to Materials (range 15) 5 | -11/Scrapyard | Upgraded with Propulsion slot (x1) 5 | -11/Scrapyard | Upgraded with Utility slot (x1) 5 | -11/Scrapyard | Upgraded with Weapon slot (x1) 99 | -11/Scrapyard | Upgraded with Utility slot (x1) 124 | -11/Scrapyard | Entered Materials 174 | -10/Materials | Upgraded with Propulsion slot (x1) 305 | -10/Materials | Build established: Hacker-Mutant 542 | -10/Materials | Identified exit to Materials 542 | -10/Materials | Discovered exit to Materials (range 8) 624 | -10/Materials | Build established: Hacker-Skirmisher 766 | -10/Materials | Discovered exit to Materials (range 5) 832 | -10/Materials | Discovered exit to Materials (range 5) 1434 | -10/Materials | Entered another Materials area 1436 | -9/Materials | Reached level 2 1436 | -9/Materials | Reached level 3 1436 | -9/Materials | Reached level 4 1438 | -9/Materials | Upgraded with Power slot (x1) 1438 | -9/Materials | Upgraded with Propulsion slot (x1) 1438 | -9/Materials | Upgraded with Utility slot (x1) 1438 | -9/Materials | Upgraded with Weapon slot (x1) 1454 | -9/Materials | Identified exit to Mines 1454 | -9/Materials | Identified exit to Storage 1782 | -9/Materials | Build established: Scavenger-Skirmisher 1930 | -9/Materials | Core integrity fell below 50% 1991 | -9/Materials | Reached level 5 2284 | -9/Materials | Identified exit to Materials 2284 | -9/Materials | Discovered exit to Materials (range 17) 2440 | -9/Materials | Build established: Hacker-Skirmisher 2689 | -9/Materials | Reached level 6 2972 | -9/Materials | Repaired Broken Grenade Launcher+ 2988 | -9/Materials | Discovered exit to Materials (range 18) 3551 | -9/Materials | Discovered exit to Materials (range 18) 3964 | -9/Materials | Entered Storage 3966 | -9/Storage | Reached level 7 4097 | -9/Storage | Repaired Structural Scanner 4255 | -9/Storage | Identified exit to Recycling 4255 | -9/Storage | Discovered exit to Recycling (range 13) 4344 | -9/Storage | Upgraded with Utility slot (x2) 4371 | -9/Storage | Identified exit to Garrison 4385 | -9/Storage | Garrison activated, responded to threat 4401 | -9/Storage | Reached level 8 4624 | -9/Storage | Reached level 9 4713 | -9/Storage | Build established: Hacker-Gunner 5180 | -9/Storage | Met a pair of Derelict thieves 5241 | -9/Storage | Destroyed 8 combat bots 5316 | -9/Storage | Discovered exit to Materials (range 17) 5353 | -9/Storage | Entered Materials 5353 | -8/Materials | Accompanied by 2 allies 5355 | -8/Materials | Reached level 10 5556 | -8/Materials | Reached level 11 5560 | -8/Materials | Upgraded with Utility slot (x1) 5660 | -8/Materials | Identified exit to Garrison 5661 | -8/Materials | Entered Garrison 5661 | -8/Garrison | Accompanied by 1 ally 5741 | -8/Garrison | Triggered checkpoint 5783 | -8/Garrison | Triggered checkpoint 5867 | -8/Garrison | Triggered checkpoint 5905 | -8/Garrison | Identified exit to Materials 5905 | -8/Garrison | Discovered exit to Materials (range 11) 5920 | -8/Garrison | Installed Relay Interface Framework 5920 | -8/Garrison | Reached level 12 6213 | -8/Garrison | Triggered checkpoint 6273 | -8/Garrison | Phase Generator disabled 6344 | -8/Garrison | Discovered exit to Materials (range 8) 6559 | -8/Garrison | Reached level 13 6562 | -8/Garrison | Triggered checkpoint 6679 | -8/Garrison | Triggered checkpoint 6693 | -8/Garrison | Discovered exit to Materials (range 13) 6711 | -8/Garrison | Spotted B-75 Beast 6711 | -8/Garrison | Spotted B-75 Beast 6775 | -8/Garrison | Core integrity fell below 50% 6780 | -8/Garrison | Destroyed B-75 Beast 6812 | -8/Garrison | Destroyed B-75 Beast 7032 | -8/Garrison | Build established: Hacker-Tank 7251 | -8/Garrison | Triggered checkpoint 7303 | -8/Garrison | Triggered checkpoint 7304 | -8/Garrison | Garrison Relay disabled 7634 | -8/Garrison | P-60 Hacker assimilated allied Bruiser 3a 7652 | -8/Garrison | Build established: Hacker-Assassin 7684 | -8/Garrison | Self-destructed Last Messages --------------- Bruiser 3c destroyed. Bruiser 3a reactivates. Destroyed Shock Rifle. Destroyed Gravmag System. P-60 Hacker destroyed. Bruiser 3a destroyed. Bruiser 3b destroyed. Destroyed Imp. Heat Sink. Destroyed Shock Rifle. P-60 Hacker heat spikes uncontrollably. Imp. Heat Sink melted. Remote Datajack melted. P-60 Hacker destroyed. Used Protomatter to restore core integrity (+177, depleted) Dropped Imp. Datajack. Acquired Remote Datajack. Remote Datajacks cannot fire with other weapons in the same volley. Dropped Hrd. Light Armor Plating. Map ----- +----------------------------------------------------+ | ?############ ##?#??#"! !"#?????????????? | | #####?###?### #?#####"! !"#?????????????? | | #?####?##?### ####?##"! !"#?????????????? | | ##?#####?#### ####?##"! !"#?????????????? | | ###########?# #?#####"! !"#?????????????? | | ###########?# #######"! !"#?????????????? | | ############# ##??###"" ""#?????????????? | | ?##?####??#?# ############# ###?????????????? | | ###?#??###### #############++########????????? | | ###??####?### ! [ ########?? | | ?########?### !! ## """"#?? | | #######???### "#?? | | #???##?#??### ############## =#### ## """"#?? | | ???####??#?## #?#?##########= T### ########?? | | ?????##??#### #########"####%[#### #????????? | | ???###?###?## =%[#### #????????? | | ????#?#??##?# ^ #### #????????? | | ???#?########## ##### #######?# #????????? | | #?##??#?######"""""##?# #####??## #????????? | | ##??#?#?################ ##?###?### #????????? | | ??????#?#####?########?# ########## #????????? | | ????####?##?##?#######?#! < ##???????? | | ??#???##?#######?###?### ########## ##???????? | | ???#?#??################/##/#####?######???????? | | ????#??#?########?###%!#*#!=####?####?#????????? | | ???????############?#!!+/@!!####??####?#???????? | | ???????######?####?##;=%=#%##??##?#####????????? | | ?????###?###?########!!#[#!!#########?#?#??????? | | ?????#????#######??##/ [%! ##??##?#?##????????? | | ???????#?#?###################?#######?????????? | | ?????????##?#####?####?##?#####?########???????? | | ??????????#?#??###?######?#####?####?###???????? | | ??????????##?#?##?####?####??##########????????? | | ???????????###?####?#####?####?#??####?????????? | | | | | | | | | | | | | | | | | | | | | | | | | | | | | | | | | +----------------------------------------------------+ Best States ------------- Heat Dissipation 85 Energy Generation 25 Energy Capacity 470 Matter Stores 300 Matter Capacity 300 Sight Range 18 Robot Scan Range 8 Terrain Scan Range 16 Terrain Scan Density 210 ECM Strength 1 Armor Coverage 675 Resistance: KI 55 Resistance: TH 40 Resistance: EX 40 Resistance: EM 35 Resistance: I 35 Resistance: S 35 Resistance: P 35 Weapon Cycling 15 Evasion (%) 40 Targeting Accuracy 5 Recoil Reduction 4 Offensive Hacking 25 Defensive Hacking 5 Trap Extractor Capacity 4 Item Schematics ----------------- Lgt. Treads | -10/Materials | Hacked Lgt. Armor Plating | -10/Materials | Hacked Grenade Launcher | -10/Materials | Hacked Rocket Launcher | -9/Materials | Scanalyzed Shock Bomb Launcher | -9/Storage | Hacked Imp. Light Cannon | -9/Storage | Hacked Imp. Terrain Scanner | -9/Storage | Hacked Beam Rifle | -9/Storage | Hacked Robot Schematics ------------------ G-34 Mercenary | -10/Materials | Hacked S-10 Pest | -10/Materials | Hacked A-02 Transporter | -10/Materials | Hacked Y-45 Defender | -9/Materials | Hacked W-16 Scout | -9/Materials | Hacked O-16 Technician | -9/Materials | Hacked L-31 Rogue | -9/Storage | Hacked M-13 Machinist | -9/Storage | Hacked I-25 Savior | -9/Storage | Hacked H-55 Commando | -8/Materials | Hacked Fabricated ------------ Nothing Repaired ---------- Grenade Launcher | 30% | -9/Materials | Broken Structural Scanner | 45% | -9/Storage Studied --------- Grenade Launcher | -9/Materials | Hacked Rocket Launcher | -9/Materials | Hacked Alien Tech Used ----------------- None Achievements -------------- None Challenges ------------ None RPGLIKE | -11 -10 -9 -9 -8 -8 --------- Run | Yrd Mat Mat Sto Mat Gar Levels Raised 12 | . . 5 3 2 2 XP Earned 24596 | 6000 1330 7217 4450 2470 3129 XP Spent 23715 | 4700 1300 4715 7225 3025 2750 Upgrades 56 | 9 5 12 19 7 4 Power Slot 1 | . . 1 . . . Propulsion Slot 3 | 1 1 1 . . . Utility Slot 6 | 2 . 1 2 1 . Weapon Slot 2 | 1 . 1 . . . Core Integrity 5 | . . . . 5 . Heat Dissipation 10 | . . 5 5 . . Inventory Capacity 4 | 3 . . 1 . . Sight Range 2 | . 2 . . . . Sensor Range 4 | . 1 1 2 . . Terrain Scan Density 2 | . 1 1 . . . Ranged Accuracy 3 | 2 . 1 . . . Hack Attack % 1 | . . . 1 . . Hack Defense % 1 | . . . 1 . . KI Resistance % 4 | . . . 1 . 3 TH Resistance % 1 | . . . 1 . . EX Resistance % 1 | . . . 1 . . KI Damage % 1 | . . . 1 . . TH Damage % 4 | . . . 2 1 1 EX Damage % 1 | . . . 1 . . Protomatter Created 1797 | . 77 619 573 163 365 Integrity Restored 1351 | . . 457 349 58 487 Core 1351 | . . 457 349 58 487 Protomatter Decayed 1533 | . 77 412 373 270 401 Game ------ Seed AntisysHelicalWings Manual? 0 Play Time 01:50:24 Cumulative 12.5 hours Start 2026.08.15 @ 14:27:10 End 2026.08.15 @ 20:52:36 Sessions 3 Manual Loads 0 Difficulty Explorer Special Mode Winter2019/RPGLIKE Game No. 9 Rogue 8 Adventurer 0 Explorer 1 Win Type - Total 0 Types 0/0/0/0/0/0/0/0/0/0 Lore% 22 Gallery% 14 Achievement% 14 Wizard Run 0 Options --------- Layout 2 ASCII 0 Keyboard 1 Movement Numpad Keybinds 0 Fullscreen 2 Font 16/Terminus Map View 50x49 Zoom Use 0% Tactical HUD 0 Map Filters NONE Filters NONE Steam SD RUN: ab8d3cd0-9d21-44d5-9d53-1b4d5ef36157